[Event "*** SCC Grand Prix: Titled Tuesday Blitz"]
[Site "Chess.com"]
[Date "2020.07.07"]
[Round "9"]
[White "DonBroca"]
[Black "tteshan"]
[Result "1-0"]
[WhiteElo "2133"]
[BlackElo "2253"]
[TimeControl "180+1"]
[EndTime "11:47:20 PDT"]
[Termination "DonBroca won by resignation"]

1. c4 {[%clk 0:03:00.9]} 1... c6 {[%clk 0:02:57]} 2. d4 {[%clk 0:02:57.6]} 2...
f5 {[%clk 0:02:55]} 3. Nc3 {[%clk 0:02:56.5]} 3... Nf6 {[%clk 0:02:54.7]} 4. e3
{[%clk 0:02:56.6]} 4... g6 {[%clk 0:02:54.1]} 5. Nf3 {[%clk 0:02:56.7]} 5... Bg7
{[%clk 0:02:54]} 6. b3 {[%clk 0:02:57]} 6... O-O {[%clk 0:02:53.9]} 7. Bb2
{[%clk 0:02:56.7]} 7... d6 {[%clk 0:02:53]} 8. Be2 {[%clk 0:02:56.7]} 8... Qe8
{[%clk 0:02:48.4]} 9. O-O {[%clk 0:02:48.3]} 9... e5 {[%clk 0:02:47.6]} 10. dxe5
{[%clk 0:02:48.3]} 10... dxe5 {[%clk 0:02:48.5]} 11. Re1 {[%clk 0:02:48.6]}
11... a5 {[%clk 0:02:37.3]} 12. Na4 {[%clk 0:02:47.5]} 12... Nbd7 {[%clk
0:02:33.8]} 13. Qc2 {[%clk 0:02:40.9]} 13... h6 {[%clk 0:02:16.4]} 14. Rad1
{[%clk 0:02:38.1]} 14... Qe6 {[%clk 0:01:45.4]} 15. c5 {[%clk 0:02:31.9]} 15...
g5 {[%clk 0:01:27]} 16. Bc4 {[%clk 0:02:13.1]} 16... Nd5 {[%clk 0:01:26]} 17. e4
{[%clk 0:02:05.6]} 17... fxe4 {[%clk 0:01:25.9]} 18. Qxe4 {[%clk 0:02:06.5]}
18... Rf4 {[%clk 0:01:08.4]} 19. Qc2 {[%clk 0:01:44]} 19... g4 {[%clk
0:00:58.5]} 20. Nd4 {[%clk 0:01:28.4]} 20... Qf6 {[%clk 0:00:35.3]} 21. Bxd5+
{[%clk 0:01:20.7]} 21... cxd5 {[%clk 0:00:33.7]} 22. Nb5 {[%clk 0:01:19.4]}
22... d4 {[%clk 0:00:26.4]} 23. Nc7 {[%clk 0:01:07.8]} 23... Rb8 {[%clk
0:00:18]} 24. Nd5 {[%clk 0:01:07.2]} 24... Qf7 {[%clk 0:00:18.3]} 25. Nxf4
{[%clk 0:01:07.2]} 25... Qxf4 {[%clk 0:00:18.4]} 26. Qe4 {[%clk 0:01:04.7]}
26... Qxe4 {[%clk 0:00:17.2]} 27. Rxe4 {[%clk 0:01:05.6]} 27... h5 {[%clk
0:00:17.7]} 28. Ba3 {[%clk 0:01:01.3]} 28... Kf7 {[%clk 0:00:14.5]} 29. Nb6
{[%clk 0:01:00.9]} 29... Nxb6 {[%clk 0:00:13.9]} 30. cxb6 {[%clk 0:01:01.8]}
30... Bf5 {[%clk 0:00:13.9]} 31. Ree1 {[%clk 0:00:54]} 31... Rc8 {[%clk
0:00:13.6]} 32. Bd6 {[%clk 0:00:47.6]} 32... e4 {[%clk 0:00:13.2]} 33. Bc7
{[%clk 0:00:45]} 33... d3 {[%clk 0:00:12.8]} 34. Re3 {[%clk 0:00:34.2]} 34...
Bh6 {[%clk 0:00:10.8]} 35. Ree1 {[%clk 0:00:28.8]} 35... Re8 {[%clk 0:00:10.9]}
36. f3 {[%clk 0:00:25.5]} 36... gxf3 {[%clk 0:00:09.3]} 37. gxf3 {[%clk
0:00:26.4]} 37... Kf6 {[%clk 0:00:08.2]} 38. fxe4 {[%clk 0:00:26.3]} 38... Bxe4
{[%clk 0:00:08.6]} 39. Rf1+ {[%clk 0:00:22.4]} 39... Ke6 {[%clk 0:00:07.3]} 40.
Rfe1 {[%clk 0:00:21.4]} 40... Rg8+ {[%clk 0:00:06.5]} 41. Kf2 {[%clk 0:00:20.4]}
41... Kd5 {[%clk 0:00:06]} 42. Bg3 {[%clk 0:00:13.5]} 42... Rf8+ {[%clk
0:00:04.2]} 43. Kg1 {[%clk 0:00:13.7]} 43... Bg5 {[%clk 0:00:03.1]} 44. Rf1
{[%clk 0:00:12.3]} 44... h4 {[%clk 0:00:03.8]} 45. Rxf8 {[%clk 0:00:12.1]} 45...
hxg3 {[%clk 0:00:04.3]} 46. hxg3 {[%clk 0:00:12.8]} 46... Be3+ {[%clk
0:00:04.8]} 47. Kf1 {[%clk 0:00:12.5]} 47... Bf3 {[%clk 0:00:05.7]} 48. Rxd3+
{[%clk 0:00:12]} 48... Ke4 {[%clk 0:00:06.1]} 49. Rxe3+ {[%clk 0:00:12.3]} 49...
Kxe3 {[%clk 0:00:06.5]} 50. Rxf3+ {[%clk 0:00:13.2]} 50... Kxf3 {[%clk 0:00:07]}
51. g4 {[%clk 0:00:13]} 51... Kxg4 {[%clk 0:00:07.5]} 52. Ke2 {[%clk 0:00:13.9]}
52... Kf5 {[%clk 0:00:08.4]} 53. Kd3 {[%clk 0:00:14.8]} 53... Ke5 {[%clk
0:00:09]} 54. Kc4 {[%clk 0:00:15.7]} 54... Kd6 {[%clk 0:00:09.1]} 55. Kb5 {[%clk
0:00:16.6]} 55... Kd5 {[%clk 0:00:08.9]} 56. Kxa5 {[%clk 0:00:16.8]} 56... Kc6
{[%clk 0:00:09.4]} 57. a4 {[%clk 0:00:16.5]} 1-0

[Event "*** SCC Grand Prix: Titled Tuesday Blitz"]
[Site "Chess.com"]
[Date "2020.07.07"]
[Round "9"]
[White "Guenplen"]
[Black "alexrustemov"]
[Result "1-0"]
[WhiteElo "2903"]
[BlackElo "2732"]
[TimeControl "180+1"]
[EndTime "11:47:21 PDT"]
[Termination "Guenplen won on time"]

1. d4 {[%clk 0:03:00.9]} 1... d5 {[%clk 0:02:55.9]} 2. Bf4 {[%clk 0:03:00.8]}
2... Nf6 {[%clk 0:02:55.7]} 3. e3 {[%clk 0:03:01.1]} 3... e6 {[%clk 0:02:56.3]}
4. Nd2 {[%clk 0:03:00.6]} 4... c5 {[%clk 0:02:56.8]} 5. c3 {[%clk 0:03:00.1]}
5... Bd6 {[%clk 0:02:57.3]} 6. Bg3 {[%clk 0:02:59.9]} 6... Qc7 {[%clk
0:02:57.5]} 7. dxc5 {[%clk 0:02:57]} 7... Qxc5 {[%clk 0:02:57.2]} 8. Ngf3 {[%clk
0:02:57.2]} 8... O-O {[%clk 0:02:53.8]} 9. Bd3 {[%clk 0:02:56.5]} 9... Nbd7
{[%clk 0:02:53.1]} 10. e4 {[%clk 0:02:48.2]} 10... Bxg3 {[%clk 0:02:45.6]} 11.
hxg3 {[%clk 0:02:47.5]} 11... dxe4 {[%clk 0:02:43.7]} 12. Bxe4 {[%clk
0:02:35.3]} 12... Rd8 {[%clk 0:02:26.5]} 13. Qe2 {[%clk 0:02:29.3]} 13... Nf8
{[%clk 0:01:59.2]} 14. O-O {[%clk 0:02:18.9]} 14... Bd7 {[%clk 0:01:54.9]} 15.
Rfd1 {[%clk 0:02:07.6]} 15... Ba4 {[%clk 0:01:45.4]} 16. b3 {[%clk 0:02:03.1]}
16... Bc6 {[%clk 0:01:42.2]} 17. Bxc6 {[%clk 0:01:59.5]} 17... Qxc6 {[%clk
0:01:42]} 18. c4 {[%clk 0:01:58.6]} 18... Qc5 {[%clk 0:01:15.4]} 19. Ne4 {[%clk
0:01:53.5]} 19... Nxe4 {[%clk 0:01:09.6]} 20. Qxe4 {[%clk 0:01:54.4]} 20... Qc7
{[%clk 0:01:05.7]} 21. g4 {[%clk 0:01:41.6]} 21... h6 {[%clk 0:01:04.6]} 22. g5
{[%clk 0:01:34.9]} 22... hxg5 {[%clk 0:00:56.7]} 23. Nxg5 {[%clk 0:01:35.8]}
23... b6 {[%clk 0:00:47.9]} 24. g3 {[%clk 0:01:29.1]} 24... Rxd1+ {[%clk
0:00:45.8]} 25. Rxd1 {[%clk 0:01:30]} 25... Rd8 {[%clk 0:00:46.2]} 26. Rxd8
{[%clk 0:01:23.5]} 26... Qxd8 {[%clk 0:00:47.1]} 27. Nf3 {[%clk 0:01:19.5]}
27... Ng6 {[%clk 0:00:34.2]} 28. Kg2 {[%clk 0:01:09.3]} 28... a5 {[%clk
0:00:34]} 29. Qb7 {[%clk 0:01:03.1]} 29... Qd6 {[%clk 0:00:28.2]} 30. Ng5 {[%clk
0:00:42.5]} 30... Ne5 {[%clk 0:00:27.5]} 31. Qa8+ {[%clk 0:00:26.8]} 31... Qf8
{[%clk 0:00:27]} 32. Qe4 {[%clk 0:00:27.4]} 32... Ng6 {[%clk 0:00:23.4]} 33.
Nxe6 {[%clk 0:00:24.3]} 33... fxe6 {[%clk 0:00:14.8]} 34. Qxg6 {[%clk
0:00:23.6]} 34... Qd6 {[%clk 0:00:14.8]} 35. Qe8+ {[%clk 0:00:22.8]} 35... Kh7
{[%clk 0:00:14.7]} 36. Qh5+ {[%clk 0:00:23.7]} 36... Kg8 {[%clk 0:00:14.6]} 37.
Qe8+ {[%clk 0:00:21.5]} 37... Kh7 {[%clk 0:00:14.3]} 38. Qb5 {[%clk 0:00:22.4]}
38... Kg6 {[%clk 0:00:11.3]} 39. a3 {[%clk 0:00:20.2]} 39... Qd4 {[%clk
0:00:10.9]} 40. Qc6 {[%clk 0:00:18]} 40... Kf6 {[%clk 0:00:10]} 41. b4 {[%clk
0:00:17.9]} 41... axb4 {[%clk 0:00:09.1]} 42. axb4 {[%clk 0:00:18.8]} 42... g5
{[%clk 0:00:05.3]} 43. c5 {[%clk 0:00:15.3]} 43... bxc5 {[%clk 0:00:05.6]} 44.
bxc5 {[%clk 0:00:13.3]} 44... g4 {[%clk 0:00:06]} 45. Qd6 {[%clk 0:00:06.7]}
45... Qe4+ {[%clk 0:00:01.6]} 46. Kh2 {[%clk 0:00:05.9]} 46... Qf3 {[%clk
0:00:01.6]} 47. Qf4+ {[%clk 0:00:05.8]} 1-0

[Event "*** SCC Grand Prix: Titled Tuesday Blitz"]
[Site "Chess.com"]
[Date "2020.07.07"]
[Round "9"]
[White "GadimbayliA"]
[Black "giantslayer83"]
[Result "1/2-1/2"]
[WhiteElo "2891"]
[BlackElo "2736"]
[TimeControl "180+1"]
[EndTime "11:47:21 PDT"]
[Termination "Game drawn by repetition"]

1. e4 {[%clk 0:02:59.2]} 1... c6 {[%clk 0:02:58.5]} 2. Nf3 {[%clk 0:02:42.5]}
2... d5 {[%clk 0:02:58.4]} 3. exd5 {[%clk 0:02:43.4]} 3... cxd5 {[%clk
0:02:59.3]} 4. d4 {[%clk 0:02:44.2]} 4... Nc6 {[%clk 0:02:59.3]} 5. Ne5 {[%clk
0:02:44.5]} 5... Nf6 {[%clk 0:02:50]} 6. c3 {[%clk 0:02:42.6]} 6... Bf5 {[%clk
0:02:44.9]} 7. Bb5 {[%clk 0:02:41.2]} 7... Qb6 {[%clk 0:02:44.3]} 8. Qe2 {[%clk
0:02:40.7]} 8... e6 {[%clk 0:02:43.9]} 9. Nd2 {[%clk 0:02:34.6]} 9... Bd6 {[%clk
0:02:38]} 10. g4 {[%clk 0:02:34.8]} 10... Bg6 {[%clk 0:02:32.2]} 11. h4 {[%clk
0:02:34.2]} 11... Bxe5 {[%clk 0:02:16.5]} 12. dxe5 {[%clk 0:02:27.9]} 12... Nd7
{[%clk 0:02:01]} 13. h5 {[%clk 0:02:27.9]} 13... Bc2 {[%clk 0:01:56.2]} 14. h6
{[%clk 0:01:58.4]} 14... gxh6 {[%clk 0:01:49.7]} 15. Nf1 {[%clk 0:01:47.9]}
15... Be4 {[%clk 0:01:46.1]} 16. Be3 {[%clk 0:00:34.8]} 16... Qc7 {[%clk
0:01:37.3]} 17. f3 {[%clk 0:00:31.2]} 17... Bg6 {[%clk 0:01:34.5]} 18. f4 {[%clk
0:00:31.8]} 18... a6 {[%clk 0:01:19.5]} 19. Bxc6 {[%clk 0:00:31.8]} 19... Qxc6
{[%clk 0:01:20]} 20. Rxh6 {[%clk 0:00:30.9]} 20... Be4 {[%clk 0:01:11.2]} 21.
Ng3 {[%clk 0:00:28.8]} 21... O-O-O {[%clk 0:01:11.1]} 22. O-O-O {[%clk
0:00:17.8]} 22... Qa4 {[%clk 0:01:05.3]} 23. a3 {[%clk 0:00:16.3]} 23... Kb8
{[%clk 0:01:01.4]} 24. Rd4 {[%clk 0:00:15.2]} 24... Qc6 {[%clk 0:01:01]} 25.
Nxe4 {[%clk 0:00:15]} 25... dxe4 {[%clk 0:01:01.9]} 26. Rh1 {[%clk 0:00:11.9]}
26... Nc5 {[%clk 0:01:01.7]} 27. Rxd8+ {[%clk 0:00:10.7]} 27... Rxd8 {[%clk
0:01:02.6]} 28. Bxc5 {[%clk 0:00:06.7]} 28... Qxc5 {[%clk 0:01:03.5]} 29. Rd1
{[%clk 0:00:07.2]} 29... Rxd1+ {[%clk 0:01:02.4]} 30. Kxd1 {[%clk 0:00:07.6]}
30... Qd5+ {[%clk 0:00:59.2]} 31. Kc2 {[%clk 0:00:07.6]} 31... h6 {[%clk
0:00:58.3]} 32. Qd2 {[%clk 0:00:06.3]} 32... Kc7 {[%clk 0:00:48]} 33. Qxd5
{[%clk 0:00:04.5]} 33... exd5 {[%clk 0:00:48.9]} 34. Kd2 {[%clk 0:00:04.8]}
34... b5 {[%clk 0:00:47.6]} 35. Ke3 {[%clk 0:00:04.9]} 35... a5 {[%clk
0:00:44.4]} 36. Kd4 {[%clk 0:00:04.7]} 36... a4 {[%clk 0:00:43.9]} 37. Ke3
{[%clk 0:00:05.2]} 37... Kd7 {[%clk 0:00:42.8]} 38. f5 {[%clk 0:00:05.8]} 38...
Ke7 {[%clk 0:00:42.4]} 39. Kf4 {[%clk 0:00:06.3]} 39... Kf8 {[%clk 0:00:41.9]}
40. Kg3 {[%clk 0:00:05]} 40... Kg7 {[%clk 0:00:41.8]} 41. Kf4 {[%clk 0:00:05.5]}
41... Kh7 {[%clk 0:00:38.8]} 42. Kg3 {[%clk 0:00:05.8]} 42... Kg8 {[%clk
0:00:35.6]} 43. Kf4 {[%clk 0:00:06]} 43... Kf8 {[%clk 0:00:36]} 44. Ke3 {[%clk
0:00:06]} 44... Ke7 {[%clk 0:00:36.4]} 45. Kd4 {[%clk 0:00:06.2]} 45... Kd7
{[%clk 0:00:36.7]} 46. Ke3 {[%clk 0:00:06.2]} 46... Kc7 {[%clk 0:00:35.7]} 47.
Kf4 {[%clk 0:00:06.3]} 47... Kc6 {[%clk 0:00:33.9]} 48. Ke3 {[%clk 0:00:06.2]}
48... Kc5 {[%clk 0:00:33.4]} 49. Kf4 {[%clk 0:00:05.8]} 49... Kc6 {[%clk
0:00:29.6]} 50. Ke3 {[%clk 0:00:06.2]} 50... Kd7 {[%clk 0:00:18.1]} 51. Kd4
{[%clk 0:00:06.4]} 51... Ke7 {[%clk 0:00:17.7]} 52. Ke3 {[%clk 0:00:06.8]} 52...
Ke8 {[%clk 0:00:17.8]} 53. Kf4 {[%clk 0:00:05.3]} 53... Kf8 {[%clk 0:00:18]}
1/2-1/2

[Event "*** SCC Grand Prix: Titled Tuesday Blitz"]
[Site "Chess.com"]
[Date "2020.07.07"]
[Round "9"]
[White "mjray79"]
[Black "grunbergmihai"]
[Result "1/2-1/2"]
[WhiteElo "2333"]
[BlackElo "2444"]
[TimeControl "180+1"]
[EndTime "11:47:21 PDT"]
[Termination "Game drawn - insufficient material"]

1. d4 {[%clk 0:03:00.9]} 1... Nf6 {[%clk 0:02:59.8]} 2. c4 {[%clk 0:03:00.3]}
2... g6 {[%clk 0:03:00.7]} 3. Nc3 {[%clk 0:02:59.6]} 3... d5 {[%clk 0:03:01.6]}
4. cxd5 {[%clk 0:02:59.6]} 4... Nxd5 {[%clk 0:03:01.5]} 5. e4 {[%clk 0:03:00.2]}
5... Nxc3 {[%clk 0:03:01.5]} 6. bxc3 {[%clk 0:03:01.1]} 6... Bg7 {[%clk
0:03:02.1]} 7. Bc4 {[%clk 0:03:01.6]} 7... c5 {[%clk 0:03:02.2]} 8. Be3 {[%clk
0:03:01.2]} 8... O-O {[%clk 0:03:01.4]} 9. Ne2 {[%clk 0:03:01.2]} 9... cxd4
{[%clk 0:02:54]} 10. cxd4 {[%clk 0:02:59.9]} 10... Qa5+ {[%clk 0:02:53.7]} 11.
Qd2 {[%clk 0:02:59.4]} 11... Qxd2+ {[%clk 0:02:53.3]} 12. Kxd2 {[%clk
0:03:00.3]} 12... Nc6 {[%clk 0:02:53.2]} 13. Rhd1 {[%clk 0:03:00.4]} 13... Rd8
{[%clk 0:02:52.2]} 14. Ke1 {[%clk 0:02:59.5]} 14... b6 {[%clk 0:02:48.2]} 15.
Bd5 {[%clk 0:02:56.1]} 15... Bb7 {[%clk 0:02:46.1]} 16. Rac1 {[%clk 0:02:55.9]}
16... Rac8 {[%clk 0:02:44.9]} 17. a4 {[%clk 0:02:51.3]} 17... e6 {[%clk
0:02:44.4]} 18. Bc4 {[%clk 0:02:45.7]} 18... Na5 {[%clk 0:02:23.5]} 19. Bd3
{[%clk 0:02:41.6]} 19... Nb3 {[%clk 0:02:19]} 20. Rxc8 {[%clk 0:02:37.4]} 20...
Rxc8 {[%clk 0:02:19.9]} 21. Rb1 {[%clk 0:02:35.2]} 21... Na5 {[%clk 0:02:17.5]}
22. Kd2 {[%clk 0:02:34.3]} 22... f5 {[%clk 0:02:09.5]} 23. f3 {[%clk 0:02:30.8]}
23... fxe4 {[%clk 0:02:06.2]} 24. fxe4 {[%clk 0:02:31.7]} 24... Nc4+ {[%clk
0:02:05.3]} 25. Bxc4 {[%clk 0:02:31.3]} 25... Rxc4 {[%clk 0:02:04.9]} 26. a5
{[%clk 0:02:08.6]} 26... Bxe4 {[%clk 0:02:03.8]} 27. Rb2 {[%clk 0:01:59]} 27...
Bxg2 {[%clk 0:01:56.3]} 28. axb6 {[%clk 0:01:58]} 28... axb6 {[%clk 0:01:56.2]}
29. Rxb6 {[%clk 0:01:58.1]} 29... Kf7 {[%clk 0:01:49.3]} 30. Nf4 {[%clk
0:01:49.5]} 30... Bd5 {[%clk 0:01:26.5]} 31. Kd3 {[%clk 0:01:39.1]} 31... Ra4
{[%clk 0:01:11.4]} 32. Nxd5 {[%clk 0:01:38.2]} 32... exd5 {[%clk 0:01:11.3]} 33.
Rb7+ {[%clk 0:01:27.3]} 33... Kg8 {[%clk 0:01:09.3]} 34. h4 {[%clk 0:01:13.2]}
34... Bf6 {[%clk 0:01:05]} 35. h5 {[%clk 0:01:07.8]} 35... gxh5 {[%clk
0:01:02.8]} 36. Rb5 {[%clk 0:01:07.6]} 36... Ra3+ {[%clk 0:00:58.6]} 37. Ke2
{[%clk 0:01:06.9]} 37... Kf7 {[%clk 0:00:57.6]} 38. Rxd5 {[%clk 0:01:06.2]}
38... Kg6 {[%clk 0:00:57.6]} 39. Rb5 {[%clk 0:00:54.4]} 39... h4 {[%clk
0:00:56]} 40. Rb1 {[%clk 0:00:51.6]} 40... Kf5 {[%clk 0:00:36.9]} 41. Rf1+
{[%clk 0:00:49.7]} 41... Ke6 {[%clk 0:00:34.9]} 42. d5+ {[%clk 0:00:45.2]} 42...
Ke5 {[%clk 0:00:32.8]} 43. d6 {[%clk 0:00:29.1]} 43... Ra2+ {[%clk 0:00:27.8]}
44. Kd3 {[%clk 0:00:28.3]} 44... Ra3+ {[%clk 0:00:25.6]} 45. Ke2 {[%clk
0:00:27.4]} 45... Ra2+ {[%clk 0:00:23.8]} 46. Kd3 {[%clk 0:00:27.3]} 46... Bd8
{[%clk 0:00:19.3]} 47. Bf4+ {[%clk 0:00:22.3]} 47... Ke6 {[%clk 0:00:17.6]} 48.
Ke3 {[%clk 0:00:20.6]} 48... h3 {[%clk 0:00:16.7]} 49. Kf3 {[%clk 0:00:20.6]}
49... Bb6 {[%clk 0:00:10.4]} 50. Rh1 {[%clk 0:00:20]} 50... Bc5 {[%clk
0:00:09.1]} 51. Rxh3 {[%clk 0:00:17.4]} 51... Ra3+ {[%clk 0:00:08.8]} 52. Kg4
{[%clk 0:00:17.5]} 52... Rxh3 {[%clk 0:00:08.7]} 53. Kxh3 {[%clk 0:00:18.4]}
53... Bxd6 {[%clk 0:00:08.9]} 54. Bxd6 {[%clk 0:00:18.5]} 54... Kxd6 {[%clk
0:00:08.8]} 55. Kh2 {[%clk 0:00:19.4]} 55... h5 {[%clk 0:00:08.8]} 56. Kh1
{[%clk 0:00:20.3]} 56... h4 {[%clk 0:00:08.8]} 57. Kg1 {[%clk 0:00:21.2]} 57...
h3 {[%clk 0:00:09]} 58. Kh1 {[%clk 0:00:22.1]} 58... h2 {[%clk 0:00:09]} 59.
Kxh2 {[%clk 0:00:22.1]} 1/2-1/2

[Event "*** SCC Grand Prix: Titled Tuesday Blitz"]
[Site "Chess.com"]
[Date "2020.07.07"]
[Round "9"]
[White "Gabrielian_Artur"]
[Black "olksuna"]
[Result "1-0"]
[WhiteElo "2781"]
[BlackElo "2629"]
[TimeControl "180+1"]
[EndTime "11:47:24 PDT"]
[Termination "Gabrielian_Artur won by resignation"]

1. e4 {[%clk 0:03:00.9]} 1... c5 {[%clk 0:02:59.8]} 2. Nc3 {[%clk 0:03:00.4]}
2... Nc6 {[%clk 0:02:59.9]} 3. Bb5 {[%clk 0:02:59.5]} 3... Nd4 {[%clk
0:02:59.7]} 4. Bc4 {[%clk 0:02:59.4]} 4... e6 {[%clk 0:02:59.7]} 5. Nf3 {[%clk
0:02:58.3]} 5... Nf6 {[%clk 0:02:59.9]} 6. O-O {[%clk 0:02:48.3]} 6... a6 {[%clk
0:03:00]} 7. Bb3 {[%clk 0:02:47.5]} 7... Nxb3 {[%clk 0:02:50.6]} 8. axb3 {[%clk
0:02:47.2]} 8... d5 {[%clk 0:02:51.4]} 9. exd5 {[%clk 0:02:44.2]} 9... Nxd5
{[%clk 0:02:51.6]} 10. Re1 {[%clk 0:02:41.5]} 10... Be7 {[%clk 0:02:51.3]} 11.
d3 {[%clk 0:02:41.2]} 11... O-O {[%clk 0:02:49.1]} 12. Bd2 {[%clk 0:02:40.1]}
12... b5 {[%clk 0:02:47]} 13. Nxb5 {[%clk 0:02:38.1]} 13... Bb7 {[%clk
0:02:47.3]} 14. Na3 {[%clk 0:02:35.6]} 14... Bf6 {[%clk 0:02:44.8]} 15. Nc4
{[%clk 0:02:35.4]} 15... Qc7 {[%clk 0:02:34.1]} 16. Qe2 {[%clk 0:02:26.1]} 16...
Nb4 {[%clk 0:02:20.2]} 17. Rac1 {[%clk 0:01:29.1]} 17... a5 {[%clk 0:02:14.1]}
18. h3 {[%clk 0:01:24.1]} 18... a4 {[%clk 0:02:07]} 19. bxa4 {[%clk 0:01:23.9]}
19... Rxa4 {[%clk 0:02:07]} 20. c3 {[%clk 0:01:14.8]} 20... Nd5 {[%clk
0:01:50.4]} 21. Ra1 {[%clk 0:01:14.7]} 21... Rfa8 {[%clk 0:01:48.1]} 22. Rxa4
{[%clk 0:01:14.9]} 22... Rxa4 {[%clk 0:01:49]} 23. Nfe5 {[%clk 0:01:15.3]} 23...
Ra2 {[%clk 0:01:39.3]} 24. Qg4 {[%clk 0:01:10.4]} 24... Ba6 {[%clk 0:01:35.6]}
25. Bc1 {[%clk 0:01:04.4]} 25... Ra1 {[%clk 0:01:29.2]} 26. Qe2 {[%clk
0:00:58.8]} 26... h6 {[%clk 0:01:12]} 27. Ng4 {[%clk 0:00:48.3]} 27... Be7
{[%clk 0:01:02.5]} 28. Nge5 {[%clk 0:00:39.2]} 28... Bf6 {[%clk 0:01:02.2]} 29.
Ng4 {[%clk 0:00:39.2]} 29... Be7 {[%clk 0:01:02.3]} 30. Nce5 {[%clk 0:00:31.1]}
30... Bf8 {[%clk 0:00:51.1]} 31. c4 {[%clk 0:00:27.8]} 31... Nb4 {[%clk
0:00:45.5]} 32. Bf4 {[%clk 0:00:19.6]} 32... Rxe1+ {[%clk 0:00:41.8]} 33. Qxe1
{[%clk 0:00:20.5]} 33... Bb7 {[%clk 0:00:25.2]} 34. Qe3 {[%clk 0:00:18.3]} 34...
Qd8 {[%clk 0:00:20.3]} 35. Qg3 {[%clk 0:00:16.6]} 35... Kh7 {[%clk 0:00:11.6]}
36. Nxf7 {[%clk 0:00:15.4]} 36... Qxd3 {[%clk 0:00:11.5]} 37. Be3 {[%clk
0:00:14]} 37... Qf5 {[%clk 0:00:07.7]} 38. Nd6 {[%clk 0:00:12.5]} 38... Bxd6
{[%clk 0:00:05.9]} 39. Qxd6 {[%clk 0:00:12.7]} 39... Nc2 {[%clk 0:00:05.4]} 40.
Qe7 {[%clk 0:00:12.3]} 40... Nxe3 {[%clk 0:00:02.9]} 41. Nxe3 {[%clk 0:00:11.4]}
41... Qe4 {[%clk 0:00:03.4]} 42. Qxc5 {[%clk 0:00:11.3]} 42... e5 {[%clk
0:00:02.8]} 43. Qe7 {[%clk 0:00:11.1]} 43... Bc6 {[%clk 0:00:02.3]} 44. Qd6
{[%clk 0:00:11.1]} 44... Bb7 {[%clk 0:00:01.5]} 45. b4 {[%clk 0:00:11.4]} 45...
Ba8 {[%clk 0:00:01.5]} 46. b5 {[%clk 0:00:11.6]} 46... Qb1+ {[%clk 0:00:01.5]}
47. Kh2 {[%clk 0:00:11.3]} 47... Qb2 {[%clk 0:00:02.4]} 48. Qf8 {[%clk
0:00:09.6]} 48... e4 {[%clk 0:00:01.9]} 49. Qf5+ {[%clk 0:00:09.3]} 49... Kh8
{[%clk 0:00:01.3]} 50. Qc8+ {[%clk 0:00:09.4]} 50... Kh7 {[%clk 0:00:02.2]} 51.
Qxa8 {[%clk 0:00:09.6]} 51... Qxf2 {[%clk 0:00:02.9]} 52. Qxe4+ {[%clk
0:00:09.6]} 52... Kg8 {[%clk 0:00:03.6]} 53. Nd5 {[%clk 0:00:08.8]} 53... Qh4
{[%clk 0:00:03.7]} 54. Qxh4 {[%clk 0:00:08.8]} 1-0

[Event "*** SCC Grand Prix: Titled Tuesday Blitz"]
[Site "Chess.com"]
[Date "2020.07.07"]
[Round "9"]
[White "fridaywins"]
[Black "Malysch"]
[Result "0-1"]
[WhiteElo "2282"]
[BlackElo "2465"]
[TimeControl "180+1"]
[EndTime "11:47:25 PDT"]
[Termination "Malysch won on time"]

1. e4 {[%clk 0:03:00.9]} 1... d5 {[%clk 0:02:59.7]} 2. Nc3 {[%clk 0:02:59.9]}
2... Nf6 {[%clk 0:02:58.1]} 3. e5 {[%clk 0:02:58.2]} 3... Nfd7 {[%clk
0:02:57.7]} 4. d4 {[%clk 0:02:56.9]} 4... c5 {[%clk 0:02:56.4]} 5. f4 {[%clk
0:02:50.6]} 5... cxd4 {[%clk 0:02:55.4]} 6. Nb5 {[%clk 0:02:49.5]} 6... Nc6
{[%clk 0:02:54.5]} 7. Nf3 {[%clk 0:02:48.2]} 7... Nc5 {[%clk 0:02:53.5]} 8.
Nbxd4 {[%clk 0:02:45.7]} 8... Bg4 {[%clk 0:02:52.2]} 9. Be2 {[%clk 0:02:44.1]}
9... e6 {[%clk 0:02:52.1]} 10. c3 {[%clk 0:02:43.4]} 10... Be7 {[%clk
0:02:45.6]} 11. O-O {[%clk 0:02:30.5]} 11... O-O {[%clk 0:02:37.9]} 12. h3
{[%clk 0:02:30.7]} 12... Bh5 {[%clk 0:02:36.6]} 13. g4 {[%clk 0:02:30.8]} 13...
Bg6 {[%clk 0:02:36]} 14. f5 {[%clk 0:02:30.3]} 14... exf5 {[%clk 0:02:34.1]} 15.
gxf5 {[%clk 0:02:29.8]} 15... Bh5 {[%clk 0:02:33.9]} 16. Nxc6 {[%clk 0:02:12]}
16... bxc6 {[%clk 0:02:32.4]} 17. Nd4 {[%clk 0:02:11.9]} 17... Bxe2 {[%clk
0:02:29.2]} 18. Qxe2 {[%clk 0:02:11.9]} 18... Ne4 {[%clk 0:02:25]} 19. f6 {[%clk
0:02:05.1]} 19... gxf6 {[%clk 0:02:19.3]} 20. Kh2 {[%clk 0:01:59]} 20... fxe5
{[%clk 0:02:01.5]} 21. Rg1+ {[%clk 0:01:54.9]} 21... Kh8 {[%clk 0:01:59.9]} 22.
Nxc6 {[%clk 0:01:46.3]} 22... Qd6 {[%clk 0:01:52.2]} 23. Nxe7 {[%clk 0:01:11]}
23... Qxe7 {[%clk 0:01:50.5]} 24. Qh5 {[%clk 0:01:03.3]} 24... Rg8 {[%clk
0:01:45.5]} 25. Be3 {[%clk 0:00:58.4]} 25... Rg6 {[%clk 0:01:38.2]} 26. Raf1
{[%clk 0:00:53.6]} 26... Rag8 {[%clk 0:01:34.8]} 27. Qf5 {[%clk 0:00:50.7]}
27... Rxg1 {[%clk 0:01:31.6]} 28. Bxg1 {[%clk 0:00:45.3]} 28... f6 {[%clk
0:01:16.2]} 29. c4 {[%clk 0:00:42.6]} 29... Qg7 {[%clk 0:01:00.1]} 30. Qf3
{[%clk 0:00:42.3]} 30... Nd2 {[%clk 0:00:57.6]} 31. Qxf6 {[%clk 0:00:42.1]}
31... Nxf1+ {[%clk 0:00:56.7]} 32. Qxf1 {[%clk 0:00:41.7]} 32... dxc4 {[%clk
0:00:53.7]} 33. Be3 {[%clk 0:00:30.3]} 33... Rf8 {[%clk 0:00:42.5]} 34. Qxc4
{[%clk 0:00:27.9]} 34... h6 {[%clk 0:00:34.7]} 35. Qe4 {[%clk 0:00:27.9]} 35...
Qf6 {[%clk 0:00:32.3]} 36. b4 {[%clk 0:00:18]} 36... Qf5 {[%clk 0:00:31.8]} 37.
Qxf5 {[%clk 0:00:18]} 37... Rxf5 {[%clk 0:00:32.7]} 38. Bxa7 {[%clk 0:00:18.6]}
38... e4 {[%clk 0:00:29]} 39. Kg3 {[%clk 0:00:19.5]} 39... Rf3+ {[%clk
0:00:26.3]} 40. Kg4 {[%clk 0:00:17.8]} 40... Ra3 {[%clk 0:00:23.2]} 41. Bc5
{[%clk 0:00:15.7]} 41... Kg7 {[%clk 0:00:16.5]} 42. Kf4 {[%clk 0:00:15.5]} 42...
Rxa2 {[%clk 0:00:14.3]} 43. Kxe4 {[%clk 0:00:13.8]} 43... Ra3 {[%clk 0:00:12.9]}
44. h4 {[%clk 0:00:10.2]} 44... Kf6 {[%clk 0:00:12.5]} 45. Be3 {[%clk
0:00:09.6]} 45... h5 {[%clk 0:00:11.7]} 46. Bd4+ {[%clk 0:00:08.9]} 46... Ke6
{[%clk 0:00:11.2]} 47. b5 {[%clk 0:00:09.4]} 47... Rb3 {[%clk 0:00:10.7]} 48. b6
{[%clk 0:00:09.6]} 48... Rb4 {[%clk 0:00:11]} 49. Kd3 {[%clk 0:00:07.5]} 49...
Kd5 {[%clk 0:00:10.8]} 50. Bf2 {[%clk 0:00:04.2]} 50... Rb3+ {[%clk 0:00:08.7]}
51. Kc2 {[%clk 0:00:04.3]} 51... Kc4 {[%clk 0:00:08.5]} 0-1